bitfinex/quotes_SOLUSD_20220117
["timestamp","ask_amount","ask_price","bid_price","bid_amount"]
[1642415849771,1.99174253,142.99,142.93,10.7409]
[1642415849968,1.99174253,142.99,142.93,16.7909]
[1642415850169,1.99174253,142.99,142.94,69.53]
[1642415850367,1.99174253,142.99,142.95,0.25]
[1642415850867,1.99174253,142.99,142.95,48.29245873]
[1642415851470,1.99174253,142.99,142.95,58.78065873]
[1642415851872,1.99174253,143.02,142.96,69.53]
[1642415852067,1.99174253,143.02,142.96,100.0089]
[1642415852268,1.99174253,143.02,142.97,0.25]
[1642415853273,1.99174253,143.03,142.97,0.25]
[1642415853471,1.99174253,143.03,142.97,10.7379]
[1642415853671,1.99174253,143.03,142.98,43.06105861]
[1642415854073,1.99174253,143.03,142.97,10.7379]
[1642415855072,1.99174253,143.03,142.97,49.14220675]
[1642415856272,25.05854253,143.04,142.97,49.14220675]
[1642415860077,29.5519897,143.04,142.97,10.7379]
[1642415860478,29.5519897,143.04,142.97,0.25]
[1642415863383,25.05854253,143.04,142.97,113.24832546]
[1642415865385,25.05854253,143.04,142.97,123.73622546]
[1642415872923,25.05854253,143.04,142.97,80.2679]
[1642415874019,25.05854253,143.04,142.97,129.33511922]
[1642415874620,25.05854253,143.04,142.97,80.2679]
[1642415880430,1.99174253,143.03,142.97,80.2679]
[1642415881437,25.05854253,143.04,142.97,80.2679]
[1642415885333,25.05854253,143.04,142.97,86.5279]
[1642415886234,23.0668,143.04,142.97,86.5279]
[1642415887233,23.0668,143.04,142.97,80.5279]
[1642415888333,23.0668,143.04,142.97,81.83600543]
[1642415888736,23.0668,143.04,142.97,87.83600543]
[1642415890438,23.0668,143.04,142.97,87.57600543]
[1642415891140,1.99174253,143.05,142.97,87.57600543]
[1642415891340,1.99174253,143.05,142.99,69.53]
[1642415891542,1.99174253,143.05,143.0,80.0149]
[1642415891741,1.99174253,143.05,143.0,80.2649]
[1642415891940,1.99174253,143.05,143.01,46.37048856]
[1642415892641,3.11773989,143.06,143.01,115.90048856]
[1642415893243,3.11773989,143.06,143.01,126.38538856]
[1642415893644,3.11773989,143.06,143.01,56.85538856]
[1642415894847,1.12599736,143.06,143.01,56.85538856]
[1642415895777,1.12599736,143.06,143.01,126.38538856]
[1642415898281,5.73924031,143.13,143.02,144.25]
[1642415898482,5.73924031,143.13,143.05,10.4805]
[1642415898682,5.73924031,143.14,143.06,79.65]
[1642415898883,5.73924031,143.14,143.07,22.654]
[1642415899086,5.73924031,143.14,143.08,10.12]
[1642415899283,5.73924031,143.14,143.08,65.2638521]
[1642415899584,5.73924031,143.14,143.1,10.4788]
[1642415899785,15.13282781,143.15,143.08,10.12]
[1642415899984,15.13282781,143.15,143.05,10.12]
[1642415900185,24.5155,143.14,143.05,523.02333431]
[1642415900384,35.0002,143.14,143.05,523.02333431]
[1642415900586,45.1202,143.14,143.05,523.02333431]
[1642415900785,45.1202,143.14,143.05,566.02661852]
[1642415900987,45.1202,143.14,143.05,43.00328421]
[1642415901186,0.25,143.13,143.05,43.00328421]
[1642415902388,10.4857,143.12,143.05,43.00328421]
[1642415905189,46.38933682,143.14,143.05,43.00328421]
[1642415905992,36.26933682,143.14,143.05,43.00328421]
[1642415906391,0.25,143.13,143.05,43.00328421]
[1642415906592,0.25,143.13,143.06,0.25]
[1642415906796,0.25,143.13,143.06,5.99]
[1642415907196,0.25,143.13,143.06,28.8662]
[1642415907398,25.78483682,143.14,143.06,28.8662]
[1642415907597,25.78483682,143.14,143.06,108.8775]
[1642415908696,25.78483682,143.14,143.06,118.9975]
[1642415909500,25.78483682,143.14,143.06,119.2575]
[1642415909705,25.78483682,143.14,143.06,118.9975]
[1642415910907,25.78483682,143.14,143.06,49.2175]
[1642415911205,25.78483682,143.14,143.06,15.86]
[1642415911405,25.78483682,143.14,143.06,10.12]
[1642415912206,62.93744353,143.14,143.06,10.12]
[1642415912408,25.78483682,143.14,143.06,10.12]
[1642415914110,25.78483682,143.14,143.07,0.25]
[1642415914738,25.78483682,143.14,143.07,7.149]
[1642415915539,25.78483682,143.14,143.08,45.54807173]
[1642415916144,25.78483682,143.14,143.05,506.75056286]
[1642415917143,0.25,143.13,143.06,48.5502214]
[1642415918048,0.25,143.13,143.06,54.5502214]
[1642415921448,25.78483682,143.14,143.07,0.25]
[1642415921651,25.78483682,143.14,143.07,23.5341]
[1642415922055,25.78483682,143.14,143.07,69.78]
[1642415922351,46.81448662,143.14,143.06,48.5502214]
[1642415922949,1.26933682,143.14,143.06,48.5502214]
[1642415923952,1.26933682,143.14,143.06,72.0647214]
[1642415924155,1.26933682,143.14,143.07,0.25]
[1642415924353,1.26933682,143.14,143.06,72.0647214]
[1642415924755,1.26933682,143.14,143.07,0.25]
[1642415925785,1.26933682,143.14,143.06,82.5462214]
[1642415925957,0.25,143.13,143.06,72.0647214]
[1642415926256,37.35400169,143.13,143.06,72.0647214]
[1642415926459,37.35400169,143.13,143.06,48.5502214]
[1642415927557,0.25,143.13,143.06,48.5502214]
[1642415928158,0.25,143.13,143.06,71.7391214]
[1642415930558,1.26933682,143.14,143.06,71.7391214]
[1642415930759,1.26933682,143.14,143.07,0.25]
[1642415932461,1.26933682,143.14,143.07,10.7306]
[1642415933062,1.26933682,143.14,143.08,23.4087]
[1642415933563,1.26933682,143.14,143.09,37.21251762]
[1642415934571,1.26933682,143.14,143.08,23.4087]
[1642415934764,1.26933682,143.14,143.05,484.19936286]
[1642415935164,3.00838107,143.14,143.05,484.19936286]
[1642415935664,3.00838107,143.14,143.06,36.01525491]
[1642415936264,1.26933682,143.14,143.06,36.01525491]
[1642415936466,11.75303682,143.14,143.06,36.01525491]
[1642415938267,10.7344,143.13,143.06,36.01525491]
[1642415938465,12.47344425,143.13,143.06,36.01525491]
[1642415939668,1.98904425,143.13,143.06,36.01525491]
[1642415939865,23.0675,143.15,143.06,36.01525491]
[1642415940066,23.0675,143.15,143.07,23.654]
[1642415940267,23.0675,143.15,143.08,0.25]
[1642415940866,46.44997543,143.14,143.07,23.654]
[1642415941067,46.44997543,143.14,143.06,36.01525491]
[1642415941269,1.73904425,143.13,143.05,484.19936286]
[1642415941471,11.85904425,143.13,142.99,22.7243]
[1642415941868,1.98904425,143.12,143.0,69.53]
[1642415942272,26.23744425,143.12,143.01,59.96280598]
[1642415942570,1.73904425,143.11,143.02,10.4843]
[1642415942770,1.73904425,143.11,143.02,10.7343]
[1642415942969,1.73904425,143.11,143.03,23.6293]
[1642415943169,1.73904425,143.11,143.04,42.4506978]
[1642415943470,1.73904425,143.14,143.05,69.53]
[1642415943668,1.73904425,143.14,143.04,42.7006978]
[1642415943669,1.73904425,143.14,143.06,24.0439]
[1642415943868,45.46334425,143.17,143.07,0.25]
[1642415944069,1.73904425,143.16,143.04,42.4506978]
[1642415944269,10.12,143.15,143.07,36.28961629]
[1642415944670,1.73904425,143.14,143.07,36.28961629]
[1642415944872,1.98904425,143.14,143.0,10.12]
[1642415945070,35.64584425,143.14,143.02,10.4838]
[1642415945273,1.73904425,143.13,143.03,22.7931]
[1642415945872,1.73904425,143.13,143.04,47.40759139]
[1642415946472,12.22284425,143.13,143.04,47.40759139]
[1642415946876,1.73904425,143.12,143.04,47.40759139]
[1642415948300,12.22354425,143.12,143.04,47.40759139]
[1642415949300,0.25,143.11,143.04,47.40759139]
[1642415950301,1.73904425,143.1,143.04,47.40759139]
[1642415956612,0.25,143.09,143.04,47.40759139]
[1642415961914,10.4838,143.13,143.04,116.93759139]
[1642415962115,10.4838,143.13,143.05,0.25]
[1642415962715,10.4838,143.13,143.05,22.8558]
[1642415963316,10.4823,143.15,143.05,22.8558]
[1642415964117,39.67764031,143.17,143.05,23.1158]
[1642415964416,40.03864031,143.17,143.06,90.1305]
[1642415964619,34.2994,143.17,143.06,90.1305]
[1642415964817,34.2994,143.17,143.07,48.49938604]
[1642415965017,34.2994,143.17,143.08,23.5701]
[1642415965417,34.2994,143.17,143.09,0.25]
[1642415966417,0.25,143.16,143.09,0.25]
[1642415967119,10.481,143.17,143.09,0.25]
[1642415967319,17.74820385,143.19,143.09,8.108]
[1642415967519,7.26880385,143.19,143.09,18.5868]
[1642415968122,5.73924031,143.19,143.1,37.32024057]
[1642415968320,5.73924031,143.19,143.11,0.25]
[1642415968723,1.73904425,143.2,143.11,0.25]
[1642415968919,1.73904425,143.2,143.11,25.144]
[1642415969122,48.91159514,143.19,143.11,24.894]
[1642415969320,48.91159514,143.19,143.08,348.13396946]
[1642415969520,1.73904425,143.18,143.09,24.4347]
[1642415969719,12.21904425,143.18,143.08,348.13396946]
[1642415969922,22.33904425,143.18,143.08,348.13396946]
[1642415970121,1.73904425,143.17,143.08,348.13396946]
[1642415970322,2.55624656,143.16,143.08,388.15073196]
[1642415970923,4.29529081,143.16,143.08,388.15073196]
[1642415971121,14.77679081,143.16,143.08,348.13396946]
[1642415971722,24.89679081,143.16,143.08,348.13396946]
[1642415971921,24.89679081,143.16,143.03,23.4102]
[1642415972121,24.2358,143.15,143.04,39.99441801]
[1642415972327,10.4853,143.12,143.04,39.99441801]
[1642415972524,1.73904425,143.14,143.04,63.22501801]
[1642415972725,10.12,143.16,143.04,68.99001801]
[1642415972922,10.12,143.19,143.05,0.25]
[1642415973123,10.12,143.19,143.04,79.11001801]
[1642415973324,10.48,143.18,143.05,10.482]
[1642415973523,53.34206647,143.18,143.05,10.482]
[1642415973722,25.87494425,143.17,143.06,24.4885]
[1642415973924,26.12494425,143.17,143.07,38.81272354]
[1642415974126,26.12494425,143.17,143.06,24.4885]
[1642415974127,1.73904425,143.16,143.06,24.4885]
[1642415974323,1.73904425,143.16,143.08,355.77862533]
[1642415974824,10.4827,143.15,143.08,355.77862533]
[1642415975023,10.34481948,143.14,143.08,355.77862533]
[1642415975226,22.20386373,143.14,143.08,355.77862533]
[1642415975424,1.73904425,143.13,143.03,63.83545655]
[1642415976425,12.22604425,143.13,143.03,63.83545655]
[1642415976826,1.73904425,143.12,143.03,63.83545655]
[1642415977026,36.03730637,143.11,143.03,63.83545655]
[1642415977430,1.73904425,143.1,143.03,63.83545655]
[1642415978530,12.22534425,143.1,143.03,63.83545655]
[1642415978729,0.25,143.09,143.03,63.83545655]
[1642415978929,0.25,143.09,143.0,24.6809]
[1642415979129,1.98904425,143.09,143.0,409.48586329]
[1642415979329,1.73904425,143.08,143.0,384.80496329]
[1642415979529,10.4895,143.06,143.0,384.80496329]
[1642415979929,1.73904425,143.05,143.0,433.44633397]
[1642415980633,1.73904425,143.09,143.0,433.44633397]
[1642415980843,11.85904425,143.09,143.01,0.25]
[1642415981034,11.85904425,143.09,143.0,433.44633397]
[1642415982257,0.25,143.08,143.0,433.44633397]
[1642415982456,10.4883,143.07,143.0,433.44633397]
[1642415983958,10.4883,143.07,143.01,41.33101345]
[1642415984158,12.22574425,143.09,143.01,37.08442746]
[1642415984363,12.22574425,143.09,143.01,61.16842746]
[1642415986460,1.73904425,143.09,143.01,61.16842746]
[1642415986662,1.73904425,143.09,143.01,60.91842746]
[1642415986859,24.8261,143.1,143.01,60.91842746]
[1642415987261,26.56514425,143.1,143.01,60.91842746]
[1642415987465,1.73904425,143.1,143.01,60.91842746]
[1642415987863,1.40604255,143.12,143.01,60.91842746]
[1642415988162,11.89034255,143.12,143.02,69.78]
[1642415988363,11.89034255,143.12,143.03,24.858]
[1642415988564,11.89034255,143.12,143.04,36.36887118]
[1642415988762,11.89034255,143.12,143.04,36.61887118]
[1642415988963,1.40604255,143.12,143.04,106.14887118]
[1642415989661,1.40604255,143.12,143.05,23.8689]
[1642415989862,1.40604255,143.12,143.06,0.25]
[1642415990664,10.12,143.16,143.06,0.25]
[1642415990863,20.6017,143.16,143.06,0.25]
[1642415991064,0.25,143.15,143.06,0.25]
[1642415991263,0.25,143.15,143.06,69.78]
[1642415991463,0.25,143.15,143.07,24.968]
[1642415991664,0.25,143.15,143.08,39.01738215]
[1642415991863,0.25,143.15,143.08,39.26738215]
[1642415994368,10.4817,143.16,143.08,39.26738215]
[1642415995771,0.25,143.15,143.08,39.26738215]
[1642415995970,7.48041789,143.15,143.08,39.26738215]
[1642415996174,17.96281789,143.15,143.08,0.25]
[1642415996372,10.4824,143.15,143.08,0.25]
[1642415997474,10.4824,143.15,143.07,24.968]
[1642415997475,50.22920733,143.15,143.07,71.19343717]
[1642415997677,10.7331,143.14,143.07,24.968]
[1642415998075,1.73904425,143.13,143.07,24.968]
[1642415999476,10.4849,143.12,143.07,24.968]
[1642415999877,12.22394425,143.12,143.07,24.968]
[1642416000281,23.94497862,143.12,143.07,24.968]
[1642416001080,23.94497862,143.12,143.0,394.92496329]
[1642416001282,23.94497862,143.12,143.02,42.11017139]
[1642416001979,23.94497862,143.12,143.03,49.1421]
[1642416002178,0.25,143.11,143.03,49.1421]
[1642416002379,10.4875,143.09,143.03,49.1421]
[1642416004683,48.44124684,143.09,143.03,49.1421]
[1642416005283,10.4875,143.09,143.03,49.1421]
[1642416005685,34.0773,143.11,143.04,0.25]
[1642416006285,34.0773,143.11,143.04,39.550944]
[1642416006886,0.25,143.1,143.04,39.550944]
[1642416007486,0.25,143.1,143.04,0.25]
[1642416007688,10.7359,143.1,143.03,49.1421]
[1642416007888,10.12,143.09,143.0,384.80496329]
[1642416008311,1.73904425,143.08,143.0,384.80496329]
[1642416008614,10.21156613,143.08,143.0,384.80496329]
[1642416008813,10.4888,143.07,143.0,384.80496329]
[1642416009114,12.22784425,143.07,143.0,384.80496329]
[1642416010115,1.73904425,143.06,143.0,384.80496329]
[1642416010512,12.22794425,143.06,143.0,384.80496329]
[1642416010917,1.73904425,143.05,143.0,384.80496329]
[1642416011518,12.22854425,143.05,143.0,384.80496329]
[1642416011916,43.51882387,143.04,142.95,22.5888]
[1642416012116,53.63882387,143.04,142.95,22.5888]
[1642416012320,1.73904425,143.03,142.95,22.5888]
[1642416013117,10.4926,143.02,142.88,61.67713486]
[1642416013317,10.12,143.01,142.88,51.55713486]
[1642416013519,11.85904425,143.01,142.88,51.55713486]
[1642416013818,11.42710633,143.0,142.89,49.04440293]
[1642416014016,10.12,142.99,142.89,49.04440293]
[1642416014220,11.85904425,142.99,142.89,49.04440293]
[1642416014419,12.23494425,142.98,142.89,49.04440293]
[1642416014816,10.4959,142.98,142.89,49.04440293]
[1642416015422,10.4959,142.98,142.89,118.57440293]
[1642416015622,10.4959,142.98,142.89,118.83440293]
[1642416015824,10.12,142.99,142.9,0.25]
[1642416016725,10.12,142.99,142.9,24.1653]
[1642416016925,10.12,142.99,142.9,93.9553]
[1642416017525,10.12,142.99,142.9,104.4478]
[1642416019035,10.12,142.99,142.9,103.9378]
[1642416020028,10.12,142.99,142.9,34.4078]
[1642416020328,10.12,142.99,142.91,0.25]
[1642416022333,20.6141,142.99,142.9,23.9153]
[1642416022833,20.6141,142.99,142.91,0.25]
[1642416023935,10.12,142.99,142.91,0.25]
[1642416026842,10.12,142.99,142.91,69.78]
[1642416027075,10.4927,143.01,142.91,80.2717]
[1642416027268,10.4927,143.01,142.92,93.4587]
[1642416027469,10.4927,143.01,142.92,23.9287]
[1642416027768,10.4927,143.01,142.93,49.57311929]
[1642416029375,20.6113,143.03,142.93,49.57311929]
[1642416029572,20.6113,143.03,142.94,24.977]
[1642416029770,20.6113,143.03,142.95,0.25]
[1642416030175,43.762,143.03,142.95,0.25]
[1642416033779,0.25,143.02,142.95,0.25]
[1642416033977,10.4923,143.01,142.95,0.25]
[1642416034880,49.32360042,143.04,142.95,0.25]
[1642416035582,10.4912,143.03,142.95,0.25]
[1642416035781,10.7412,143.03,142.95,0.25]
[1642416035981,12.48024425,143.03,142.95,0.25]
[1642416036382,12.48024425,143.03,142.94,24.977]
[1642416036784,12.48024425,143.03,142.92,1.98017938]
[1642416036785,69.53,143.02,142.92,1.98017938]
[1642416036987,10.4949,142.99,142.91,1.98017938]
[1642416037384,3.72380178,142.98,142.91,1.98017938]
[1642416037588,10.4949,142.99,142.91,1.98017938]
[1642416037987,10.4949,142.99,142.92,0.25]
[1642416038322,10.4949,142.99,142.91,0.25]
[1642416039186,10.4927,143.01,142.91,0.25]
[1642416040990,10.4927,143.01,142.91,2.23017938]
[1642416041692,22.747,143.0,142.91,2.23017938]
[1642416042791,22.747,143.0,142.92,1.98017938]
[1642416042993,10.4927,143.01,142.93,49.20885648]
[1642416043193,10.4927,143.01,142.93,49.45885648]
[1642416043897,10.4927,143.01,142.94,24.5613]
[1642416044295,10.4927,143.01,142.95,0.25]
[1642416047633,7.98152601,143.0,142.95,0.25]
[1642416048033,18.47482601,143.0,142.95,0.25]
[1642416049634,18.47482601,143.0,142.94,24.5613]
[1642416049832,3.64850693,142.99,142.94,24.5613]
[1642416050335,14.14250693,142.99,142.94,24.5613]
[1642416050533,14.14250693,142.99,142.92,1.98017938]
[1642416050733,14.14250693,142.99,142.91,1.98017938]
[1642416051232,14.14250693,142.99,142.92,0.25]
[1642416052835,14.14250693,142.99,142.92,23.5626]
[1642416053237,37.8385035,142.98,142.92,23.5626]
[1642416054038,48.3331035,142.98,142.92,23.5626]
[1642416054242,48.3331035,142.98,142.9,1.98017938]
[1642416054443,60.19214775,142.98,142.9,26.30687938]
[1642416054639,60.19214775,142.98,142.9,1.98017938]
[1642416054838,60.19214775,142.98,142.86,3.84233486]
[1642416055043,10.4981,142.94,142.86,3.84233486]
[1642416055439,22.35714425,142.94,142.86,3.84233486]
[1642416055639,22.35714425,142.94,142.84,5.97776415]
[1642416055840,47.26064425,142.94,142.83,3.84233486]
[1642416056241,13.6293382,142.93,142.84,47.41758438]
[1642416056446,10.5005,142.91,142.84,47.41758438]
[1642416057242,10.5005,142.91,142.85,0.25]
[1642416057442,16.7215,142.91,142.85,0.25]
[1642416057643,16.7215,142.91,142.82,23.9295]
[1642416057846,0.25,142.9,142.82,23.9295]
[1642416058043,10.5019,142.88,142.82,23.9295]
[1642416058245,18.8649,142.88,142.82,23.9295]
[1642416058644,37.8385035,142.87,142.82,23.9295]
[1642416059548,18.8649,142.88,142.82,23.9295]
[1642416059946,10.5019,142.88,142.82,23.9295]
[1642416060148,10.5019,142.88,142.83,0.25]
[1642416060948,10.5019,142.88,142.82,23.9295]
[1642416061150,10.5019,142.88,142.83,0.25]
[1642416067984,43.5943,142.9,142.83,0.25]
[1642416069981,43.3443,142.9,142.83,0.25]
[1642416070982,10.12,142.9,142.83,0.25]
[1642416072383,34.7714,142.92,142.83,0.25]
[1642416072886,24.272,142.92,142.83,69.78]
[1642416073283,24.272,142.92,142.84,22.7855]
[1642416073783,24.272,142.92,142.85,44.35624904]
[1642416074784,10.4977,142.94,142.85,44.35624904]
[1642416074983,10.4977,142.94,142.86,22.9671]
[1642416075985,35.0611,142.95,142.87,0.25]
[1642416080798,10.12,142.95,142.87,0.25]
[1642416081996,10.12,142.95,142.87,69.78]
[1642416083497,23.8496,142.97,142.87,69.78]
[1642416083697,23.8496,142.97,142.88,22.5626]
[1642416083897,23.8496,142.97,142.89,0.25]
[1642416087401,34.0094,142.98,142.89,0.25]
[1642416090103,23.5144,142.98,142.89,0.25]
[1642416090707,10.12,143.01,142.89,0.25]
[1642416090935,13.77296634,143.01,142.94,45.8769819]
[1642416091139,13.77296634,143.01,142.94,51.8079819]
[1642416091337,13.77296634,143.01,142.95,0.25]
[1642416091338,10.12,143.01,142.95,0.25]
[1642416093938,10.12,143.01,142.94,0.25]
[1642416094239,10.12,143.01,142.93,27.8422087]
[1642416094640,10.12,143.01,142.99,3.0960087]
[1642416094839,0.53219996,143.0,142.99,3.0960087]
[1642416107049,10.4918,143.02,142.99,5.5960087]
[1642416107654,10.4918,143.02,142.99,3.0960087]
[1642416109255,0.25,143.01,142.99,3.0960087]
[1642416111453,10.4918,143.02,142.99,3.0960087]
[1642416112955,10.12,143.03,142.99,3.0960087]
[1642416115358,24.6070605,143.04,142.99,3.0960087]
[1642416119064,1.5795605,143.04,142.99,3.0960087]
[1642416132204,3.64783518,143.07,142.99,3.0960087]
[1642416132505,23.8991,143.09,143.0,0.25]
[1642416132705,23.8991,143.09,143.0,6.811]
[1642416132907,23.8991,143.09,143.0,76.341]
[1642416133105,23.8991,143.09,143.01,43.05917252]
[1642416133305,0.25,143.08,143.02,25.015]
[1642416134106,33.2113,143.1,143.02,25.015]
[1642416134304,0.25,143.09,143.02,25.015]
[1642416136807,10.12,143.11,143.03,69.53]
[1642416137206,5.56114525,143.12,143.04,0.25]
[1642416137410,5.56114525,143.12,143.04,24.9044]
[1642416137606,5.56114525,143.12,143.04,94.4344]
[1642416137809,1.59156694,143.12,143.04,94.4344]
[1642416139808,1.59156694,143.12,143.04,100.6944]
[1642416141413,1.59156694,143.12,143.04,111.1745]
[1642416142218,48.53127831,143.18,143.04,111.1745]
[1642416142717,38.05097831,143.18,143.05,10.12]
[1642416142918,38.05097831,143.18,143.06,10.4786]
[1642416143121,38.05097831,143.18,143.08,69.53]
[1642416143319,38.05097831,143.18,143.09,71.68985599]
[1642416143518,23.9614,143.18,143.09,78.94085599]
[1642416143719,23.9614,143.18,143.09,148.47085599]
[1642416144122,0.25,143.17,143.09,148.47085599]
[1642416144320,0.25,143.17,143.09,78.94085599]
[1642416144522,0.25,143.17,143.09,71.68985599]
[1642416144920,0.25,143.17,143.09,141.21985599]
[1642416146522,11.27893674,143.17,143.09,141.21985599]
[1642416150628,11.27893674,143.17,143.09,71.68985599]
[1642416153962,21.75983674,143.17,143.05,34.5412]
[1642416154162,1.73904425,143.16,143.05,24.4212]
[1642416154361,10.12,143.15,143.05,24.4212]
[1642416154562,69.53,143.14,143.03,23.1031]
[1642416154763,10.12,143.13,143.03,23.1031]
[1642416154964,40.43890496,143.12,143.01,49.29372898]
[1642416155363,42.17794921,143.12,143.01,49.29372898]
[1642416155565,1.73904425,143.11,143.01,49.29372898]
[1642416156566,10.4867,143.1,143.01,49.29372898]
[1642416157166,0.25,143.09,143.01,49.29372898]
[1642416157366,0.25,143.1,143.01,49.29372898]
[1642416158270,1.98904425,143.1,143.01,49.29372898]
[1642416158467,10.4867,143.09,143.01,49.29372898]
[1642416162277,0.25,143.08,143.01,49.29372898]
[1642416163675,0.25,143.08,142.99,47.3377]
[1642416163878,0.25,143.08,143.0,0.25]
[1642416164780,0.25,143.08,143.0,37.4368698]
[1642416168391,10.7373,143.08,143.0,37.4368698]
[1642416168586,10.4873,143.08,143.0,37.4368698]
[1642416171810,7.3912913,143.08,143.0,37.4368698]
[1642416172211,0.25,143.07,143.0,37.4368698]
[1642416173313,0.25,143.07,143.0,106.9668698]
[1642416173513,10.4861,143.1,143.0,106.9668698]
[1642416174214,10.4861,143.1,143.01,23.5542]
[1642416174717,10.4861,143.1,143.02,0.25]
[1642416175817,0.25,143.09,143.02,0.25]
[1642416182332,1.98419423,143.1,143.02,0.25]
[1642416183444,1.98419423,143.09,143.02,0.25]
[1642416191673,1.98419423,143.1,143.02,0.25]
[1642416196981,1.98419423,143.11,143.03,69.53]
[1642416197284,1.98419423,143.11,143.06,105.99995729]
[1642416197487,1.98419423,143.11,143.06,36.46995729]
[1642416197682,1.98419423,143.11,143.07,0.25]
[1642416198082,1.98419423,143.12,143.07,0.25]
[1642416199886,1.98419423,143.12,143.06,61.26745729]
[1642416200486,1.98419423,143.13,143.06,61.26745729]
[1642416200886,1.98419423,143.13,143.06,24.7975]
[1642416201488,1.98419423,143.12,143.06,24.7975]
[1642416202087,14.0718557,143.12,143.06,24.7975]
[1642416202489,24.5562557,143.12,143.0,12.02235397]
[1642416202689,23.8665,143.11,143.02,69.53]
[1642416203390,25.85069423,143.11,143.03,48.49852451]
[1642416203591,25.85069423,143.11,143.04,23.0162]
[1642416204393,36.33579423,143.11,143.04,23.0162]
[1642416204593,1.98419423,143.1,143.04,23.0162]
[1642416207195,36.33579423,143.11,143.04,23.0162]
[1642416207894,1.98419423,143.1,143.04,23.0162]
[1642416208795,36.33579423,143.11,143.04,23.0162]
[1642416209196,25.85069423,143.11,143.04,23.0162]
[1642416211003,0.25,143.1,143.04,23.0162]
[1642416212604,25.85069423,143.11,143.04,23.0162]
[1642416214010,0.25,143.1,143.04,23.0162]
[1642416216533,2.23419423,143.1,143.04,23.0162]
[1642416216729,1.98419423,143.1,143.04,23.0162]
[1642416217329,1.98419423,143.1,143.04,92.5462]
[1642416218130,34.8566,143.13,143.04,23.0162]
[1642416218131,1.98419423,143.11,143.04,23.0162]
[1642416220337,0.25,143.1,143.04,23.0162]
[1642416224037,2.23419423,143.1,143.04,23.0162]
[1642416227239,4.78459175,143.09,143.04,23.0162]
[1642416229142,0.25,143.08,143.04,23.0162]
[1642416231343,2.23419423,143.08,143.04,23.0162]
[1642416232943,0.25,143.08,143.04,23.0162]
[1642416235950,8.216,143.08,142.99,26.23975397]
[1642416236245,32.6161,143.08,143.0,23.2673]
[1642416236945,1.98419423,143.07,143.0,23.2673]
[1642416238849,36.87169423,143.08,143.0,23.2673]
[1642416239249,10.12,143.07,143.0,23.2673]
[1642416239449,26.2125,143.07,143.0,23.2673]
[1642416239850,28.19669423,143.07,143.0,23.2673]
[1642416240983,0.25,143.06,143.0,23.2673]
[1642416241184,1.83198366,143.06,143.0,23.2673]
[1642416241683,1.83198366,143.06,142.98,462.80445649]
[1642416241983,25.72798366,143.06,142.98,462.80445649]
[1642416243885,36.21698366,143.06,142.98,462.80445649]
[1642416244786,36.21698366,143.06,142.99,22.5567]
[1642416251592,36.21698366,143.06,142.99,23.05705416]
[1642416251791,36.21698366,143.06,143.0,40.44070314]
[1642416251993,25.72798366,143.06,143.0,40.44070314]
[1642416253898,25.72798366,143.06,142.99,23.05705416]
[1642416254095,33.53598366,143.06,142.99,23.05705416]
[1642416254897,33.53598366,143.06,143.0,36.37677961]
[1642416255096,25.72798366,143.06,143.0,36.37677961]
[1642416264005,1.58198366,143.06,143.0,36.37677961]
[1642416264208,1.58198366,143.06,143.01,0.25]
[1642416265107,1.58198366,143.06,143.0,36.37677961]
[1642416266824,1.58198366,143.06,143.0,36.37677961]
[1642416267350,1.58198366,143.06,143.01,0.25]
[1642416267549,1.58198366,143.06,143.0,36.37677961]
[1642416267747,1.58198366,143.06,142.99,23.05705416]
[1642416267949,1.58198366,143.06,143.0,0.25]
[1642416272650,1.58198366,143.06,142.99,23.05705416]
[1642416273551,42.14805766,143.06,142.99,23.05705416]
[1642416273752,60.47405766,143.06,142.99,0.50035416]
[1642416273953,70.59405766,143.06,142.99,0.50035416]
[1642416275254,1.98419423,143.04,142.99,0.50035416]
[1642416275454,20.6109,143.03,142.99,0.50035416]